bitfinex-derivatives/quotes_BTCF0:USTF0_20241103
["timestamp","ask_amount","ask_price","bid_price","bid_amount"]
[1730592483664,0.66300553,69258.0,69257.0,0.0312]
[1730592484160,0.433011,69258.0,69257.0,0.0312]
[1730592484361,0.072211,69258.0,69257.0,0.0312]
[1730592485063,0.433011,69258.0,69257.0,0.0312]
[1730592485967,0.3608,69258.0,69257.0,0.0312]
[1730592486364,0.433011,69258.0,69257.0,0.0312]
[1730592494574,0.072211,69258.0,69257.0,0.464212]
[1730592494770,0.13875453,69269.0,69257.0,0.392]
[1730592494966,0.072204,69265.0,69264.0,0.072204]
[1730592495170,0.13875453,69269.0,69264.0,0.072204]
[1730592495373,0.072204,69265.0,69264.0,0.072204]
[1730592497766,0.072197,69272.0,69271.0,0.072196]
[1730592498481,0.3608,69274.0,69263.0,0.3608]
[1730592498777,0.3608,69274.0,69273.0,0.072196]
[1730592498981,0.432995,69274.0,69273.0,0.072196]
[1730592500380,0.072195,69274.0,69273.0,0.072196]
[1730592504080,0.072199,69270.0,69269.0,0.1043]
[1730592504277,0.21095353,69270.0,69269.0,0.1043]
[1730592504686,0.072199,69270.0,69269.0,0.1043]
[1730592515283,0.072199,69270.0,69267.0,0.07200098]
[1730592515284,0.072201,69268.0,69267.0,0.07200098]
[1730592515493,0.0722,69269.0,69263.0,0.07200098]
[1730592515494,0.072204,69265.0,69263.0,0.07200098]
[1730592515690,0.072206,69263.0,69262.0,0.07200098]
[1730592516494,0.072206,69263.0,69262.0,0.16237196]
[1730592517496,0.072206,69263.0,69262.0,0.09037098]
[1730592519293,0.072206,69263.0,69262.0,0.16257798]
[1730592520705,0.072201,69268.0,69267.0,0.072201]
[1730592520895,0.072201,69268.0,69267.0,0.16257198]
[1730592521395,0.072201,69268.0,69267.0,0.24853166]
[1730592521693,0.072196,69273.0,69272.0,0.072195]
[1730592521895,0.072196,69273.0,69272.0,0.16256598]
[1730592524701,0.072196,69273.0,69272.0,0.09037098]
[1730592524897,0.072196,69273.0,69272.0,0.16245934]
[1730592525287,0.072196,69273.0,69272.0,0.07208836]
[1730592525602,0.072198,69271.0,69270.0,0.07208836]
[1730592525797,0.072199,69270.0,69269.0,0.07208836]
[1730592525999,0.072199,69270.0,69269.0,0.16229207]
[1730592526201,0.072199,69270.0,69269.0,0.09020371]
[1730592529213,0.072199,69270.0,69269.0,0.16240371]
[1730592533208,0.072199,69270.0,69269.0,0.16236009]
[1730592535403,0.072199,69270.0,69269.0,0.09016009]
[1730592535908,0.072199,69270.0,69269.0,0.16236009]
[1730592539914,0.09103575,69276.0,69269.0,0.09016009]
[1730592540110,0.072196,69274.0,69273.0,0.14428281]
[1730592540317,0.072196,69274.0,69273.0,0.2344429]
[1730592541016,0.072196,69274.0,69273.0,0.16235509]
[1730592542218,0.072196,69274.0,69273.0,0.16224737]
[1730592546419,0.072196,69274.0,69273.0,0.09016009]
[1730592550225,0.072196,69274.0,69273.0,0.16226749]
[1730592550711,0.072196,69274.0,69273.0,0.24877115]
[1730592551518,0.072196,69274.0,69273.0,0.16226749]
[1730592551820,0.072196,69274.0,69273.0,0.24879872]
[1730592552017,0.3608,69280.0,69273.0,0.17660272]
[1730592552222,0.432989,69280.0,69279.0,0.072189]
[1730592552422,0.3608,69280.0,69279.0,0.16226049]
[1730592552814,0.3608,69280.0,69279.0,0.24878387]
[1730592553028,0.074142,69287.0,69279.0,0.09007149]
[1730592553320,0.074142,69287.0,69286.0,0.072182]
[1730592553321,0.072182,69287.0,69286.0,0.072182]
[1730592553712,0.072182,69287.0,69286.0,0.23374455]
[1730592553913,0.072182,69287.0,69286.0,0.16167532]
[1730592554725,0.072182,69287.0,69286.0,0.072182]
[1730592555515,0.072182,69287.0,69286.0,0.16163575]
[1730592557017,0.072182,69287.0,69286.0,0.072182]
[1730592557427,0.0321,69292.0,69283.0,0.11898285]
[1730592557726,0.072183,69285.0,69283.0,0.11898285]
[1730592558913,0.072183,69285.0,69284.0,0.072184]
[1730592559111,0.072172,69296.0,69283.0,0.11898285]
[1730592559112,0.13868742,69298.0,69283.0,0.11898285]
[1730592559315,0.09304,69297.0,69291.0,0.072177]
[1730592559526,0.072175,69294.0,69292.0,0.104976]
[1730592560130,0.072175,69294.0,69293.0,0.072175]
[1730592560920,0.072171,69297.0,69292.0,0.0328]
[1730592561836,0.072171,69297.0,69296.0,0.072172]
[1730592563135,0.072164,69304.0,69296.0,0.13868742]
[1730592563314,0.3608,69310.0,69305.0,0.072162]
[1730592563315,0.07216,69307.0,69305.0,0.072162]
[1730592563521,0.3608,69310.0,69307.0,0.072159]
[1730592563723,0.072157,69311.0,69308.0,0.072159]
[1730592564020,0.072157,69311.0,69310.0,0.072157]
[1730592564827,0.072153,69315.0,69312.0,0.072155]
[1730592565025,0.3608,69318.0,69312.0,0.072155]
[1730592565832,0.072153,69314.0,69312.0,0.072155]
[1730592566034,0.072153,69314.0,69309.0,0.0317]
[1730592566332,0.072153,69314.0,69313.0,0.072154]
[1730592567235,0.3608,69318.0,69313.0,0.072154]
[1730592567236,0.432949,69318.0,69313.0,0.49948742]
[1730592567431,0.432949,69318.0,69314.0,0.0308]
[1730592567935,0.3608,69318.0,69314.0,0.0308]
[1730592568236,0.3608,69318.0,69317.0,0.07215]
[1730592568423,0.432949,69318.0,69317.0,0.07215]
[1730592569528,0.072147,69321.0,69318.0,0.072148]
[1730592569722,0.072146,69321.0,69318.0,0.072148]
[1730592570639,0.072148,69319.0,69318.0,0.072148]
[1730592571629,0.072148,69319.0,69318.0,0.432948]
[1730592572837,0.0327,69326.0,69318.0,0.3608]
[1730592573036,0.072145,69322.0,69320.0,0.072147]
[1730592573349,0.072146,69321.0,69320.0,0.072147]
[1730592573641,0.0327,69326.0,69318.0,0.432949]
[1730592574041,0.072146,69322.0,69319.0,0.072148]
[1730592575142,0.072146,69321.0,69319.0,0.432948]
[1730592575631,0.072147,69320.0,69319.0,0.432948]
[1730592575834,0.072147,69320.0,69319.0,0.3608]
[1730592576342,0.13868742,69323.0,69313.0,0.072154]
[1730592576343,0.072151,69316.0,69313.0,0.072154]
[1730592576532,0.072152,69315.0,69313.0,0.072154]
[1730592577127,0.072145,69322.0,69309.0,0.103858]
[1730592577427,0.072157,69310.0,69309.0,0.103858]
[1730592578129,0.072155,69313.0,69311.0,0.072155]
[1730592578336,0.072155,69313.0,69312.0,0.072155]
[1730592581637,0.072155,69313.0,69312.0,0.3608]
[1730592582440,0.072155,69313.0,69312.0,0.41810714]
[1730592583336,0.072155,69313.0,69312.0,0.44913246]
[1730592583740,0.432955,69313.0,69312.0,0.16048746]
[1730592583943,0.072155,69313.0,69312.0,0.16036442]
[1730592584142,0.0313,69316.0,69311.0,0.07193792]
[1730592584343,0.0313,69316.0,69304.0,0.44719249]
[1730592584344,0.0313,69316.0,69310.0,0.07194118]
[1730592584540,0.0313,69316.0,69308.0,0.13868742]
[1730592584541,0.072153,69314.0,69313.0,0.072154]
[1730592588848,0.36284,69328.0,69313.0,0.22706421]
[1730592589150,0.072143,69324.0,69323.0,0.05753847]
[1730592589347,0.072144,69323.0,69322.0,0.13868742]
[1730592599652,0.3608,69329.0,69322.0,0.13868742]
[1730592599862,0.07214,69327.0,69326.0,0.05750104]
[1730592600050,0.07214,69327.0,69326.0,0.072141]
[1730592600250,0.3608,69329.0,69327.0,0.072139]
[1730592600251,0.432938,69329.0,69327.0,0.072139]
[1730592600553,0.432938,69329.0,69328.0,0.12963718]
[1730592600955,0.3608,69329.0,69328.0,0.072138]
[1730592601257,0.39428001,69338.0,69328.0,0.19214395]
[1730592601258,0.072131,69336.0,69328.0,0.19214395]
[1730592601447,0.03348001,69338.0,69337.0,0.072129]
[1730592601448,0.00208001,69338.0,69337.0,0.072129]
[1730592601776,0.072128,69338.0,69337.0,0.13868742]
[1730592602152,0.072128,69338.0,69337.0,0.19611332]
[1730592602354,0.072128,69338.0,69337.0,0.13868742]
[1730592603657,0.072128,69338.0,69335.0,0.0574259]
[1730592603658,0.0329,69341.0,69335.0,0.0574259]
[1730592603856,0.072127,69339.0,69338.0,0.04304622]
[1730592604259,0.0329,69341.0,69334.0,0.072132]
[1730592604260,0.072128,69338.0,69337.0,0.04304622]
[1730592605057,0.07213,69337.0,69334.0,0.1295579]
[1730592605754,0.0329,69341.0,69334.0,0.1295579]
[1730592605960,0.072128,69338.0,69337.0,0.04302025]
[1730592606147,0.072131,69335.0,69334.0,0.04302025]
[1730592606351,0.3608,69335.0,69333.0,0.04302025]
[1730592606564,0.072132,69334.0,69333.0,0.04302025]
[1730592606959,0.072133,69333.0,69332.0,0.11515425]
[1730592607460,0.072133,69333.0,69332.0,0.072134]
[1730592609859,0.072135,69331.0,69329.0,0.0574259]
[1730592610162,0.072136,69331.0,69329.0,0.0574259]
[1730592610655,0.072136,69331.0,69330.0,0.0574259]
[1730592613350,0.0306,69334.0,69328.0,0.24352542]
[1730592613554,0.0306,69334.0,69331.0,0.05737352]
[1730592613755,0.0306,69334.0,69330.0,0.05737352]
[1730592613956,0.072135,69331.0,69330.0,0.05737352]
[1730592614157,0.072135,69331.0,69328.0,0.24352542]
[1730592614158,0.072137,69330.0,69328.0,0.24352542]
[1730592614551,0.0306,69334.0,69328.0,0.24352542]
[1730592614752,0.072137,69329.0,69328.0,0.24352542]
[1730592615759,0.072137,69329.0,69328.0,0.19578951]
[1730592617660,0.072134,69333.0,69331.0,0.072135]
[1730592617853,0.3608,69335.0,69333.0,0.09095151]
[1730592618163,0.072132,69334.0,69333.0,0.09095151]
[1730592618350,0.072132,69334.0,69333.0,0.14836927]
[1730592621359,0.072132,69334.0,69333.0,0.09095151]
[1730592621550,0.072132,69334.0,69333.0,0.14840421]
[1730592622261,0.072132,69334.0,69333.0,0.16308451]
[1730592624165,0.072132,69334.0,69333.0,0.09095151]
[1730592627467,0.432932,69334.0,69333.0,0.09095151]
[1730592627770,0.072135,69331.0,69330.0,0.16278126]
[1730592627959,0.432932,69334.0,69328.0,0.07182975]
[1730592627960,0.434892,69334.0,69328.0,0.07182975]
[1730592628268,0.072137,69329.0,69328.0,0.07182975]
[1730592628466,0.072137,69329.0,69328.0,0.15955575]
[1730592628765,0.072138,69328.0,69327.0,0.07182975]
[1730592629066,0.07214,69327.0,69326.0,0.07182975]
[1730592629264,0.07214,69327.0,69326.0,0.15973687]
[1730592630257,0.07214,69327.0,69326.0,0.07182975]
[1730592630462,0.072141,69326.0,69325.0,0.16278126]
[1730592630677,0.072141,69326.0,69325.0,0.25071558]
[1730592631972,0.072141,69326.0,69325.0,0.16278126]
[1730592632173,0.072141,69326.0,69325.0,0.25072656]
[1730592632468,0.072141,69326.0,69325.0,0.16278126]
[1730592633068,0.072141,69326.0,69325.0,0.09095151]
[1730592633268,0.072142,69325.0,69324.0,0.07182975]
[1730592633472,0.072142,69325.0,69324.0,0.15978912]
[1730592633773,0.072142,69325.0,69324.0,0.07182975]
[1730592634075,0.072142,69325.0,69324.0,0.15983808]
[1730592634277,0.072142,69325.0,69324.0,0.07182975]
[1730592634773,0.072142,69325.0,69324.0,0.16278126]
[1730592635272,0.072142,69325.0,69324.0,0.25083768]
[1730592635678,0.072142,69325.0,69324.0,0.16278126]
[1730592636383,0.072142,69325.0,69324.0,0.09095151]
[1730592636582,0.072142,69325.0,69324.0,0.16278126]
[1730592637272,0.072142,69325.0,69324.0,0.09095151]
[1730592645892,0.45276,69336.0,69324.0,0.09095151]
[1730592646078,0.45276,69336.0,69325.0,0.14397075]
[1730592646079,0.072141,69326.0,69325.0,0.14397075]
[1730592646278,0.072141,69326.0,69325.0,0.25098998]
[1730592646480,0.072131,69335.0,69328.0,0.072138]
[1730592646803,0.43293,69336.0,69335.0,0.09095151]
[1730592647974,0.43293,69336.0,69335.0,0.1484313]
[1730592651489,0.07213,69336.0,69335.0,0.1484313]
[1730592651797,0.07213,69336.0,69335.0,0.09095151]
[1730592658194,0.07213,69336.0,69335.0,0.14840366]
[1730592658590,0.07213,69336.0,69335.0,0.09095151]
[1730592658899,0.07213,69336.0,69335.0,0.14840366]
[1730592660298,0.07213,69336.0,69335.0,0.09095151]
[1730592662196,0.07213,69336.0,69335.0,0.14839768]
[1730592662594,0.07213,69336.0,69335.0,0.09095151]
[1730592664906,0.07213,69336.0,69335.0,0.148403]
[1730592665902,0.07213,69336.0,69335.0,0.14840586]
[1730592666103,0.07213,69336.0,69335.0,0.09095151]
[1730592668099,0.07213,69336.0,69335.0,0.19855571]
[1730592669108,0.07213,69336.0,69335.0,0.1076042]
[1730592669601,0.07213,69336.0,69335.0,0.16506141]
[1730592669792,0.07213,69336.0,69335.0,0.1076042]
[1730592671407,0.07213,69336.0,69335.0,0.16507603]
[1730592672010,0.07213,69336.0,69335.0,0.1076042]
[1730592673519,0.50481,69336.0,69335.0,0.1076042]
[1730592675408,0.89576151,69336.0,69335.0,2e-07]
[1730592675709,0.072131,69335.0,69325.0,0.04312921]
[1730592675907,0.072131,69335.0,69312.0,0.08639249]
[1730592675908,0.45175151,69326.0,69323.0,0.04312921]
[1730592676112,0.072144,69323.0,69322.0,0.09812921]
[1730592676309,0.072144,69323.0,69322.0,0.055]
[1730592676310,0.163384,69323.0,69322.0,0.055]
[1730592686318,0.524184,69323.0,69322.0,0.055]
[1730592687108,0.432944,69323.0,69322.0,0.055]
[1730592690808,0.432944,69323.0,69322.0,0.21809651]
[1730592691013,0.3608,69323.0,69322.0,0.21809651]
[1730592691213,0.3109,69323.0,69322.0,0.21809651]
[1730592691414,0.072142,69325.0,69324.0,0.072143]
[1730592693323,0.072142,69325.0,69324.0,0.16309451]
[1730592694222,0.072142,69325.0,69324.0,0.22044639]
[1730592694821,0.072142,69325.0,69324.0,0.16309451]
[1730592695223,0.072142,69325.0,69324.0,0.22044639]
[1730592695835,0.072142,69325.0,69324.0,0.27544639]
[1730592696128,0.072142,69325.0,69324.0,0.21809451]
[1730592696329,0.072142,69325.0,69324.0,0.27544639]
[1730592699234,0.072142,69325.0,69324.0,0.21809451]
[1730592700344,0.3608,69336.0,69324.0,0.14595151]
[1730592700533,0.072136,69331.0,69330.0,0.072136]
[1730592700732,0.072136,69331.0,69330.0,0.16308751]
[1730592701735,0.072136,69331.0,69330.0,0.21808751]
[1730592702837,0.3608,69336.0,69330.0,0.14595151]
[1730592703040,0.072132,69334.0,69333.0,0.11519514]
[1730592703239,0.072132,69334.0,69333.0,0.16308351]
[1730592704952,0.072128,69338.0,69337.0,0.072128]
[1730592705148,0.072128,69338.0,69337.0,0.16307951]
[1730592705742,0.072128,69338.0,69337.0,0.22047611]
[1730592706452,0.072128,69338.0,69337.0,0.16307951]
[1730592707644,0.072128,69338.0,69337.0,0.21807951]
[1730592707850,0.3608,69344.0,69337.0,0.14595151]
[1730592708048,0.3608,69344.0,69343.0,0.16307451]
[1730592708553,0.432922,69344.0,69343.0,0.16307451]
[1730592708751,0.432922,69344.0,69343.0,0.09095151]
[1730592709141,0.072125,69341.0,69340.0,0.16307751]
[1730592715860,0.3608,69346.0,69340.0,0.09095151]
[1730592716157,0.072112,69353.0,69345.0,0.18190302]
[1730592716355,0.072112,69353.0,69342.0,0.3608]
[1730592716356,0.07211,69356.0,69354.0,0.072111]
[1730592716762,0.07211,69355.0,69354.0,0.072111]
[1730592717056,0.07211,69355.0,69354.0,0.16306251]
[1730592717551,0.072107,69359.0,69358.0,0.072107]
[1730592717855,0.072107,69359.0,69358.0,0.16305851]
[1730592719159,0.432903,69362.0,69361.0,0.072104]
[1730592719454,0.3608,69362.0,69361.0,0.21805551]
[1730592723170,0.00196,69375.0,69372.0,0.072092]
[1730592723370,0.072089,69376.0,69374.0,0.16304251]
[1730592723670,0.072089,69376.0,69375.0,0.43289]
[1730592724862,0.0646,69387.0,69375.0,0.3608]
[1730592725163,0.0646,69387.0,69386.0,0.09095151]
[1730592725164,0.136677,69387.0,69386.0,0.09095151]
[1730592726657,0.136677,69387.0,69386.0,0.14595151]
[1730592726854,0.072077,69387.0,69386.0,0.14595151]
[1730592727568,0.072077,69387.0,69386.0,0.21802951]
[1730592728763,0.0612,69395.0,69386.0,0.14595151]
[1730592728967,0.133269,69395.0,69394.0,0.09095151]
[1730592730556,0.133269,69395.0,69394.0,0.16302151]
[1730592732264,0.133269,69395.0,69394.0,0.09095151]
[1730592734269,0.133269,69395.0,69394.0,0.14595151]
[1730592736874,0.072069,69395.0,69394.0,0.14595151]
[1730592737075,0.1,69400.0,69397.0,0.072066]
[1730592737076,0.072066,69398.0,69397.0,0.072066]
[1730592737264,0.072066,69398.0,69397.0,0.16301751]
[1730592738367,0.072066,69398.0,69397.0,0.21801751]
[1730592739480,0.072066,69398.0,69397.0,0.14595151]
[1730592741576,0.072066,69398.0,69397.0,0.21801851]
[1730592747185,0.072066,69398.0,69397.0,0.14595151]
[1730592748087,0.072066,69398.0,69397.0,0.21801851]
[1730592752986,0.1,69400.0,69399.0,0.072065]
[1730592754388,0.172064,69400.0,69399.0,0.072065]
[1730592755084,0.172064,69400.0,69399.0,0.16301651]
[1730592755291,0.072058,69406.0,69404.0,0.072059]
[1730592755498,0.072058,69406.0,69405.0,0.18190302]
[1730592755794,0.072058,69406.0,69405.0,0.25396102]
[1730592756882,0.072058,69406.0,69405.0,0.29690254]
[1730592757587,0.135746,69417.0,69405.0,0.22484454]
[1730592757789,0.072056,69408.0,69407.0,0.072056]
[1730592758088,0.072049,69414.0,69413.0,0.07205]
[1730592758292,0.072049,69414.0,69413.0,0.3608]
[1730592758678,0.072049,69414.0,69413.0,0.43285]
[1730592758883,0.072047,69416.0,69415.0,0.072048]
[1730592759084,0.072047,69416.0,69415.0,0.16299951]
[1730592763394,0.072047,69416.0,69415.0,0.09095151]
[1730592763903,0.072047,69416.0,69415.0,0.14595151]
[1730592772186,0.072047,69416.0,69415.0,0.055]
[1730592772605,0.072047,69416.0,69415.0,0.14595151]
[1730592778794,0.072047,69416.0,69415.0,0.30895102]
[1730592779197,0.072047,69416.0,69415.0,0.35189623]
[1730592779890,0.0327,69425.0,69418.0,0.072045]
[1730592779891,0.07488589,69419.0,69418.0,0.072045]
[1730592780095,0.07488589,69419.0,69418.0,0.487845]
[1730592782106,0.07488589,69419.0,69418.0,0.66974802]
[1730592782400,0.07488589,69419.0,69418.0,0.71269323]
[1730592782598,0.00284089,69419.0,69418.0,0.71269323]
[1730592783212,0.00284089,69419.0,69418.0,0.66974802]
[1730592783505,0.00271801,69430.0,69429.0,0.18190302]
[1730592783697,0.00271801,69430.0,69429.0,0.65765122]
[1730592783897,0.00271801,69430.0,69429.0,0.61473702]
[1730592785398,0.00271801,69430.0,69429.0,0.52378551]
[1730592785598,0.07475001,69430.0,69429.0,0.52378551]
[1730592787398,0.07475001,69430.0,69429.0,0.56666617]
[1730592788412,0.07475001,69430.0,69429.0,0.52378551]
[1730592788908,0.07475001,69430.0,69429.0,0.56666617]
[1730592789298,0.07475001,69430.0,69429.0,0.52378551]
[1730592790412,0.07475001,69430.0,69429.0,0.64185703]
[1730592791013,0.07475001,69430.0,69429.0,0.56982303]
[1730592793811,0.07475001,69430.0,69429.0,0.59682582]
[1730592794605,0.07475001,69430.0,69429.0,0.66885982]
[1730592796014,0.07475001,69430.0,69429.0,0.59682582]
[1730592796911,0.07475001,69430.0,69429.0,0.20902303]
[1730592797899,0.07475001,69430.0,69429.0,0.11807152]
[1730592798806,0.50683001,69430.0,69429.0,0.11807152]
[1730592802240,0.07475001,69430.0,69429.0,0.11807152]
[1730592802516,0.07475001,69430.0,69429.0,0.17307152]
[1730592804215,0.50683001,69430.0,69429.0,0.17307152]
[1730592805205,0.50683001,69430.0,69429.0,0.02176552]
[1730592805518,0.50683001,69430.0,69429.0,5.2e-07]
[1730592809220,0.80683001,69430.0,69429.0,5.2e-07]
[1730592810319,0.50683001,69430.0,69429.0,5.2e-07]
[1730592812310,1.22843001,69430.0,69429.0,5.2e-07]
[1730592814512,1.31983001,69430.0,69429.0,5.2e-07]
[1730592814716,0.52695001,69430.0,69429.0,0.09095203]
[1730592814913,0.52695001,69430.0,69429.0,5.2e-07]
[1730592824212,0.16615001,69430.0,69429.0,5.2e-07]
[1730592824416,0.52695001,69430.0,69429.0,5.2e-07]
[1730592825622,1.09516007,69430.0,69429.0,5.2e-07]
[1730592825828,1.00420856,69430.0,69429.0,5.2e-07]
[1730592826025,1.09516007,69430.0,69429.0,5.2e-07]
[1730592826230,1.00420856,69430.0,69429.0,5.2e-07]
[1730592829145,1.09516007,69430.0,69429.0,5.2e-07]
[1730592829330,1.09516007,69430.0,69425.0,5.2e-07]
[1730592829331,0.16298851,69426.0,69425.0,5.2e-07]
[1730592829633,0.52378851,69426.0,69425.0,5.2e-07]
[1730592829835,0.61474002,69426.0,69425.0,5.2e-07]
[1730592830127,0.97554002,69426.0,69425.0,5.2e-07]
[1730592831127,0.072047,69416.0,69415.0,0.0302]
[1730592831334,0.52379851,69416.0,69415.0,0.0302]
[1730592833027,0.16299851,69416.0,69415.0,0.0302]
[1730592833232,0.52379851,69416.0,69415.0,0.0302]
[1730592834834,0.52379851,69416.0,69410.0,0.0329]
[1730592835030,0.16300351,69411.0,69410.0,0.0329]
[1730592838633,0.19033598,69411.0,69410.0,0.0329]
[1730592842025,0.55113598,69411.0,69410.0,0.0329]
[1730592843943,0.64197598,69411.0,69410.0,0.0329]
[1730592844437,0.55113598,69411.0,69410.0,0.0329]
[1730592844626,0.46018447,69411.0,69410.0,0.0329]
[1730592844833,0.38813247,69411.0,69410.0,0.0329]
[1730592845941,0.46018447,69411.0,69410.0,0.0329]
[1730592846331,0.432852,69411.0,69410.0,0.0329]
[1730592852635,0.072052,69411.0,69410.0,0.0329]
[1730592852839,0.432852,69411.0,69410.0,0.0329]
[1730592853847,0.072052,69411.0,69410.0,0.07581356]
[1730592854349,0.072052,69411.0,69410.0,0.0329]
[1730592854533,0.072052,69411.0,69410.0,0.537153]
[1730592855043,0.072052,69411.0,69410.0,0.59437108]
[1730592855246,0.072052,69411.0,69410.0,0.537153]
[1730592855474,0.072052,69411.0,69410.0,0.59442699]
[1730592856048,0.072052,69411.0,69410.0,0.537153]
[1730592856246,0.072052,69411.0,69410.0,0.104953]
[1730592856554,0.072052,69411.0,69410.0,0.537153]
[1730592856940,0.072052,69411.0,69410.0,0.5644691]
[1730592858253,0.072052,69411.0,69410.0,0.1322691]
[1730592862453,0.072052,69411.0,69410.0,0.18949447]
[1730592863255,0.072052,69411.0,69410.0,0.1322691]
[1730592863456,0.072052,69411.0,69410.0,0.18948634]
[1730592866446,0.072052,69411.0,69410.0,0.55028634]
[1730592869150,0.072052,69411.0,69410.0,0.18948634]
[1730592869348,0.072052,69411.0,69410.0,0.55028634]
[1730592870163,0.072052,69411.0,69410.0,0.18948634]
[1730592870546,0.072052,69411.0,69410.0,0.55028634]
[1730592871160,0.072052,69411.0,69410.0,0.1322691]
[1730592871462,0.072052,69411.0,69410.0,0.4930691]
[1730592872257,0.072052,69411.0,69410.0,0.1322691]
[1730592872960,0.072052,69411.0,69410.0,0.4930691]
[1730592880065,0.072049,69416.0,69415.0,0.072046]
[1730592880264,0.072049,69416.0,69415.0,0.16299751]
[1730592883670,0.072049,69416.0,69415.0,0.52379751]
[1730592884069,0.072049,69416.0,69415.0,0.16299751]
[1730592884273,0.072049,69416.0,69415.0,0.52379751]
[1730592884974,0.072049,69416.0,69415.0,0.16299751]
[1730592885279,0.072049,69416.0,69415.0,0.52379751]
[1730592887374,0.072049,69416.0,69415.0,0.45175151]
[1730592887580,0.072049,69416.0,69411.0,0.0715226]
[1730592887777,0.072052,69411.0,69410.0,0.14368262]
[1730592887977,0.072053,69410.0,69409.0,0.07162962]
[1730592888181,0.072055,69408.0,69405.0,0.07162962]
[1730592888570,0.072055,69408.0,69402.0,0.09095151]
[1730592888571,0.072055,69408.0,69404.0,0.07162962]
[1730592888772,0.072055,69408.0,69406.0,0.09095151]
[1730592892378,0.072055,69408.0,69407.0,0.41808541]
[1730592894083,0.072055,69408.0,69407.0,0.05728541]
[1730592894381,0.072056,69407.0,69406.0,0.09095151]
[1730592899489,0.072056,69407.0,69406.0,0.14821161]
[1730592905977,0.072056,69407.0,69406.0,0.0572601]
[1730592908993,0.16300751,69407.0,69405.0,0.0572601]
[1730592909187,0.16300751,69407.0,69404.0,0.04294525]
[1730592909397,0.16300751,69407.0,69403.0,0.04294525]
[1730592909581,0.072059,69404.0,69403.0,0.04294525]
[1730592910892,0.072061,69403.0,69402.0,0.042948]
[1730592911195,0.072063,69401.0,69400.0,0.042948]
[1730592912194,0.072064,69400.0,69399.0,0.042948]
[1730592912992,0.072065,69399.0,69398.0,0.042948]
[1730592913198,0.072066,69398.0,69397.0,0.042948]
[1730592913390,0.072066,69398.0,69394.0,0.0572601]
[1730592913591,0.072066,69398.0,69397.0,0.04294562]
[1730592914102,0.072066,69398.0,69393.0,0.0572601]
[1730592914103,0.072066,69398.0,69396.0,0.04294562]
[1730592914288,0.16301851,69397.0,69396.0,0.04294562]
[1730592914599,0.16301851,69397.0,69396.0,0.04294408]
[1730592914797,0.072067,69397.0,69396.0,0.04294408]
[1730592914990,0.072067,69397.0,69396.0,0.13389559]
[1730592915386,0.42688001,69403.0,69396.0,0.13389559]
[1730592915387,0.072063,69401.0,69396.0,0.09095151]
[1730592915587,0.072064,69400.0,69397.0,0.11501074]
[1730592915796,0.072066,69398.0,69397.0,0.04294474]
[1730592915993,0.072066,69398.0,69396.0,0.13389625]
[1730592916187,0.072066,69398.0,69397.0,0.04294474]
[1730592917504,0.072066,69398.0,69396.0,0.09095151]
[1730592918798,0.42684,69403.0,69396.0,0.09095151]
[1730592918992,0.072065,69399.0,69398.0,0.0429482]
[1730592919326,0.072065,69399.0,69395.0,0.072068]
[1730592919327,0.072065,69399.0,69397.0,0.0429482]
[1730592919494,0.072066,69398.0,69397.0,0.0429482]
[1730592922391,0.09095151,69398.0,69395.0,0.0429482]
[1730592922592,0.072074,69390.0,69389.0,0.0429482]
[1730592922801,0.072074,69390.0,69378.0,0.0325]
[1730592922802,0.3608,69390.0,69383.0,0.04294677]
[1730592923005,0.3608,69384.0,69381.0,0.04294677]
[1730592923209,0.072082,69382.0,69381.0,0.04294677]
[1730592923589,0.072083,69381.0,69380.0,0.04294677]
[1730592924603,0.09095151,69383.0,69378.0,0.0325]
[1730592924604,0.072085,69380.0,69379.0,0.04294677]
[1730592925398,0.072085,69380.0,69378.0,0.07544677]
[1730592925892,0.072085,69380.0,69378.0,0.0325]
[1730592926292,0.072085,69380.0,69378.0,0.12345151]
[1730592931008,0.072085,69379.0,69378.0,0.12345151]
[1730592934106,0.072088,69377.0,69376.0,0.14673477]
[1730592934302,0.072088,69377.0,69376.0,0.11503477]
[1730592936110,0.072088,69377.0,69376.0,0.04294677]
[1730592942421,0.072095,69370.0,69369.0,0.0305]
[1730592943320,0.072095,69370.0,69369.0,0.102596]
[1730592952919,0.072095,69370.0,69369.0,0.27656766]
[1730592953324,0.072095,69370.0,69369.0,0.19065319]
[1730592954427,0.072095,69370.0,69369.0,0.102596]
[1730592955404,0.072095,69370.0,69369.0,0.27687607]
[1730592956028,0.072095,69370.0,69369.0,0.19070341]
[1730592957630,0.072095,69370.0,69369.0,0.26241546]
[1730592961035,0.07209,69375.0,69374.0,0.072089]
[1730592961240,0.09095151,69376.0,69371.0,0.07170379]
[1730592961440,0.072093,69372.0,69369.0,0.0305]
[1730592961637,0.072093,69372.0,69371.0,0.072094]
[1730592961840,0.072093,69372.0,69371.0,0.16000713]
[1730592962430,0.072093,69372.0,69371.0,0.16005331]
[1730592965635,0.072093,69372.0,69371.0,0.16016881]
[1730592968047,0.07209,69376.0,69375.0,0.072088]
[1730592979952,0.072081,69384.0,69381.0,0.072079]
[1730592980164,0.072081,69384.0,69375.0,0.178729]
[1730592980165,0.072078,69388.0,69387.0,0.072075]
[1730592980452,0.072078,69388.0,69387.0,0.12946575]
[1730592980646,0.072078,69388.0,69387.0,0.072075]
[1730592983046,0.072078,69386.0,69385.0,0.05739075]
[1730592983344,0.16302951,69386.0,69385.0,0.05739075]
[1730592983631,0.07208,69384.0,69383.0,0.05739075]
[1730592983744,0.072082,69382.0,69381.0,0.05739075]
[1730592983950,0.09095151,69382.0,69379.0,0.05739075]
[1730592984256,0.16303551,69380.0,69379.0,0.05739075]
[1730592984551,0.072085,69379.0,69378.0,0.05739075]
[1730592985759,0.072086,69378.0,69377.0,0.05739075]
[1730592985948,0.072086,69378.0,69375.0,0.05739075]
[1730592985949,0.072089,69376.0,69375.0,0.05739075]
[1730592986146,0.072089,69376.0,69374.0,0.05739075]
[1730592986147,0.07209,69375.0,69374.0,0.05739075]
[1730592986347,0.072091,69374.0,69373.0,0.05739075]
[1730592986549,0.103991,69374.0,69373.0,0.05739075]